fUSD/lending_fUSD_20250828
["ID","MTS","AMOUNT","RATE_DAILY","PERIOD"]
[381865369,1756376727674,-256.0,0.000154,2]
[381865370,1756376728474,-679.21634542,0.000154,2]
[381865371,1756376730695,-248.324,0.000154,2]
[381865372,1756376732504,-325.253,0.000154,2]
[381865373,1756376735140,-500.0,0.000154,2]
[381865374,1756376735527,-484.255,0.000154,2]
[381865375,1756376737891,-881.18308354,0.000154,2]
[381865376,1756376739440,-325.253,0.000154,2]
[381865377,1756376742229,-500.0,0.000154,2]
[381865378,1756376744950,-545.23991646,0.000154,2]
[381865379,1756376748285,-251.0,0.000154,2]
[381865380,1756376749672,-500.0,0.000154,2]
[381865381,1756376750074,-160.03355033,0.000154,2]
[381865382,1756376752517,-321.05135236,0.000154,2]
[381865383,1756376755630,-476.0,0.000154,2]
[381865384,1756376757154,-500.0,0.000154,2]
[381865385,1756376757794,-300.0,0.000154,2]
[381865386,1756376760539,-1524.0,0.000154,2]
[381865387,1756376762979,-870.49291646,0.000154,2]
[381865388,1756376764868,-325.253,0.000154,2]
[381865389,1756376765104,-741.3802873,0.000154,2]
[381865390,1756376767616,-184.255,0.000154,2]
[381865391,1756376771696,-396.92808354,0.000154,2]
[381865392,1756376772602,-168.2394254,0.000154,2]
[381865393,1756376773998,-248.324,0.000154,2]
[381865394,1756376776512,-1129.50708354,0.000154,2]
[381865395,1756376779947,-718.49291646,0.000154,2]
[381865396,1756376780272,-151.0,0.000154,2]
[381865397,1756376783267,-152.0,0.000154,2]
[381865398,1756376785127,-500.0,0.000154,2]
[381865399,1756376786987,-1476.19426399,0.000154,2]
[381865400,1756376810937,-275.48173601,0.00015296,2]
[381865402,1756376813614,-248.324,0.00015296,2]
[381865403,1756376816551,-393.97447373,0.00015296,2]
[381865404,1756376818939,-242.78574349,0.00015296,2]
[381865405,1756376819350,-248.324,0.00015296,2]
[381865406,1756376821527,-591.11004677,0.00015296,2]
[381865407,1756376821553,-766.5914795,0.00015296,2]
[381865408,1756376824707,-274.39943128,0.00014795,2]
[381865409,1756376826374,-500.0,0.00014795,2]
[381865410,1756376827362,-325.60056872,0.00014795,2]
[381865411,1756376831106,-424.0,0.00014795,2]
[381865412,1756376831130,-444.49112374,0.00015,2]
[381865413,1756376833818,-200.0,0.00015,2]
[381865414,1756376834239,-227.0,0.00015,2]
[381865415,1756376836308,-249.83581579,0.00015,2]
[381865416,1756376838988,-1097.0,0.00015,2]
[381865417,1756376841110,-279.38035651,0.00015,2]
[381865418,1756376841469,-500.0,0.00015,2]
[381865419,1756376849025,-150.0,0.00015,2]
[381865420,1756376856518,-55.35441076,0.00015,2]
[381865421,1756376856541,-389.29117848,0.00015,2]
[381865422,1756376872211,-500.0,0.00015212,2]
[381865423,1756376879314,-500.0,0.00015212,2]
[381865424,1756376886330,-500.0,0.00015212,2]
[381865427,1756376893800,-500.0,0.00015212,2]
[381865430,1756376901915,-200.0,0.00015212,2]
[381865431,1756376909379,-150.0,0.00015212,2]
[381865432,1756376916838,-150.0,0.00015211,2]
[381865433,1756376925032,-150.0,0.00015211,2]
[381865434,1756376932275,-150.00000001,0.00015111,2]
[381865435,1756376940291,-150.0,0.00015111,2]
[381865436,1756376947851,-150.0,0.00015111,2]
[381865437,1756376956009,-537.12808635,0.00015111,2]
[381865438,1756376963480,-173.87691849,0.00013699,2]
[381865439,1756376963529,-300.0,0.00013699,2]
[381865440,1756376966618,-26.12308151,0.00013699,2]
[381865441,1756376971324,-250.9261,0.00015111,2]
[381865442,1756376978777,-500.0,0.00015111,2]
[381865443,1756376986775,-193.09959282,0.00015111,2]
[381865444,1756376986798,-113.80081436,0.00015111,2]
[381865445,1756376994219,-200.0,0.00015211,2]
[381865446,1756376994254,-100.0,0.00015211,2]
[381865447,1756377001238,-235.15308126,0.00015211,2]
[381865448,1756377001274,-29.69383748,0.00015211,2]
[381865449,1756377004416,-283.54186842,0.00014737,2]
[381865450,1756377008552,-368.37861166,0.00014737,2]
[381865451,1756377011343,-500.0,0.00014737,2]
[381865452,1756377012048,-350.0,0.00014737,2]
[381865453,1756377014581,-22.07951992,0.00014737,2]
[381865454,1756377019498,-500.0,0.0001521,2]
[381865455,1756377027426,-500.0,0.0001521,2]
[381865461,1756377032308,-200.0,0.0001521,2]
[381865462,1756377032317,-470.30616252,0.00015211,2]
[381865463,1756377032327,-500.0,0.00015211,2]
[381865464,1756377032336,-258.89176017,0.00015211,2]
[381865465,1756377032362,-241.10823983,0.00015211,2]
[381865466,1756377032372,-246.83018712,0.00015211,2]
[381865467,1756377032382,-164.91507928,0.00015211,2]
[381865468,1756377032484,-86.01102072,0.00015211,2]
[381865469,1756377032493,-482.44846853,0.00015211,2]
[381865470,1756377032505,-17.55153147,0.00015211,2]
[381865471,1756377032514,-259.78797173,0.00015211,2]
[381865472,1756377032554,-240.21202827,0.00015211,2]
[381865473,1756377032563,-500.0,0.00015211,2]
[381865474,1756377032573,-500.0,0.00015211,2]
[381865475,1756377032583,-500.0,0.00015211,2]
[381865476,1756377032592,-500.0,0.00015211,2]
[381865477,1756377032602,-250.0,0.00015256,2]
[381865478,1756377032611,-500.0,0.00015298,2]
[381865479,1756377032620,-418.22949235,0.00015298,2]
[381865480,1756377032629,-171.54717617,0.00015298,2]
[381865481,1756377032638,-254.45135632,0.00015298,2]
[381865482,1756377032648,-461.43541336,0.000153,2]
[381865483,1756377032672,-500.0,0.00015298,2]
[381865484,1756377032682,-1056.20458664,0.000153,2]
[381865485,1756377032691,-150.0,0.000155,3]
[381865486,1756377032701,-150.0,0.00015712,3]
[381865487,1756377032710,-603.52676354,0.00016,2]
[381865488,1756377032719,-377.62947116,0.0001628,2]
[381865489,1756377032729,-200.0,0.0001634,2]
[381865490,1756377032738,-353.06636166,0.000166,2]
[381865491,1756377032747,-1425.0,0.00016727,2]
[381865492,1756377032756,-300.0,0.00016732,2]
[381865493,1756377032773,-150.0,0.00016733,2]
[381865494,1756377032784,-250.0,0.00016733,2]
[381865495,1756377032794,-1000.0,0.00016733,3]
[381865496,1756377032803,-251.0,0.00016733,2]
[381865497,1756377032812,-2500.0,0.00016733,2]
[381865498,1756377032821,-129.02257811,0.0001694,2]
[381865499,1756377032834,-121.97742189,0.0001694,2]
[381865500,1756377032844,-550.0,0.00016999,2]
[381865501,1756377032853,-1293.16525853,0.00017,2]
[381865502,1756377032864,-130973.90567454,0.00017,2]
[381865503,1756377032873,-250.0,0.00017243,2]
[381865504,1756377032883,-1000.0,0.00017243,2]
[381865505,1756377032892,-327.46234542,0.000179,2]
[381865506,1756377032902,-150.32680568,0.000179,2]
[381865507,1756377032911,-500.0,0.00017973,2]
[381865508,1756377032920,-500.90344152,0.00017973,2]
[381865509,1756377032930,-500.7019324,0.00017973,2]
[381865510,1756377032939,-300.38415261,0.00017973,2]
[381865511,1756377032948,-500.29209131,0.00017973,2]
[381865512,1756377032957,-501.40537687,0.00017973,2]
[381865513,1756377032966,-500.0,0.00017973,2]
[381865514,1756377032976,-309.38464573,0.00017973,2]
[381865515,1756377032985,-500.0,0.00017973,2]
[381865516,1756377032994,-646.33270953,0.00017973,2]
[381865517,1756377033003,-500.0,0.00017973,2]
[381865518,1756377033013,-500.36490771,0.00017973,2]
[381865519,1756377033023,-500.70041701,0.00017973,2]
[381865520,1756377033033,-276.35092476,0.00017973,2]
[381865521,1756377033042,-70621.12980694,0.00017999,2]
[381865522,1756377033052,-314.157613,0.00018,2]
[381865523,1756377033063,-282.11,0.00018,2]
[381865524,1756377033072,-24705.71419483,0.00018,2]
[381865525,1756377033094,-756.11866528,0.00018,2]
[381865526,1756377035922,-457.23828696,0.00015298,2]
[381865712,1756377040698,-10.7929818,0.00015298,2]
[381865713,1756377040708,-1152.9070182,0.00018,2]
[381865818,1756377043303,-11898.76063738,0.00018,2]
[381865819,1756377043358,-1322.86331106,0.00018,2]
[381865820,1756377043414,-538.000481,0.00018,2]
[381865826,1756377046579,-151.19521097,0.000179,2]
[381865827,1756377046589,-182.30678903,0.00018,2]
[381865828,1756377046601,-7434.70881681,0.00018,2]
[381865829,1756377046612,-3135.20001,0.00018,2]
[381865830,1756377046623,-1848.11328,0.00018,2]
[381865831,1756377046644,-758.63798335,0.00018,2]
[381865832,1756377054564,-500.0,0.0001521,2]
[381865835,1756377062096,-500.0,0.0001521,2]
[381865836,1756377069568,-206.88608553,0.0001521,2]
[381865837,1756377069600,-86.22782894,0.0001521,2]
[381865838,1756377077079,-86.22782894,0.0001521,2]
[381865839,1756377077101,-327.54434212,0.0001521,2]
[381865840,1756377084532,-500.0,0.0001521,2]
[381865841,1756377091972,-500.0,0.0001521,2]
[381865842,1756377099024,-176.33167432,0.0001521,2]
[381865843,1756377099048,-147.33665136,0.0001521,2]
[381865844,1756377107692,-500.0,0.0001521,2]
[381865845,1756377115481,-500.0,0.0001521,2]
[381865846,1756377122994,-150.0,0.0001521,2]
[381865847,1756377123016,-200.0,0.0001521,2]
[381865849,1756377131746,-500.0,0.0001521,2]
[381865850,1756377138874,-500.0,0.0001521,2]
[381865851,1756377148417,-500.0,0.0001521,2]
[381865852,1756377156321,-500.0,0.0001521,2]
[381865853,1756377164351,-249.0739,0.00015209,2]
[381865854,1756377172123,-173.87691849,0.00015209,2]
[381865855,1756377180814,-73.95081849,0.00015209,2]
[381865856,1756377180840,-3.09836302,0.00015209,2]
[381865857,1756377188817,-150.36,0.00015208,2]
[381865858,1756377196097,-67.64,0.00015208,2]
[381865859,1756377196138,-15.72,0.00015209,2]
[381865860,1756377203174,-159.802784,0.00015209,2]
[381865861,1756377210595,-67.7007256,0.00015209,2]
[381865862,1756377210625,-256.7764904,0.00015209,2]
[381865863,1756377218575,-249.64,0.00015209,2]
[381865864,1756377225682,-149.64,0.00015209,2]
[381865865,1756377225706,-100.72,0.00015209,2]
[381865866,1756377368399,1127.388117,7.945e-05,2]
[381865868,1756377474124,-187.44672742,0.00013699,2]
[381865869,1756377475688,-78.21327258,0.00013699,2]
[381865873,1756377546686,-1524.0,0.0001472,2]
[381865874,1756377691558,169.74,8.447e-05,2]
[381865875,1756377723607,-897.78672742,0.0001472,2]
[381865876,1756377725395,-431.43456065,0.0001472,2]
[381865877,1756377728733,-155.43997735,0.0001472,2]
[381865878,1756377730500,-39.33873458,0.0001472,2]
[381865879,1756377820010,-213.2490402,0.00013699,2]
[381865880,1756377822347,-219.8701837,0.00013699,2]
[381865881,1756377824205,-66.8807761,0.00013699,2]
[381865882,1756377851713,-1818.3498918,0.00014209,2]
[381865883,1756377854790,-181.6501082,0.00014209,2]
[381865884,1756377854812,-355.27310922,0.00014209,2]
[381865885,1756377857696,-478.03248658,0.00014209,2]
[381865886,1756377859891,-311.13237351,0.00014209,2]
[381865887,1756377861586,-210.45780673,0.00014209,2]
[381865888,1756377864516,-271.37222396,0.00014209,2]
[381865890,1756377904074,-359.73114575,0.00014683,2]
[381865891,1756377906906,-372.89776256,0.00014683,2]
[381865892,1756377909505,-244.0,0.00014683,2]
[381865893,1756377912344,-250.0,0.00014235,2]
[381865894,1756377916210,-289.13133277,0.00014235,2]
[381865895,1756377921411,-234.22521844,0.00014235,2]
[381865896,1756377922196,-494.29170602,0.00014235,2]
[381865897,1756377925450,-421.51258407,0.00014235,2]
[381865898,1756377928600,-310.8391587,0.00014235,2]
[381865899,1756377928622,-986.1608413,0.00014235,2]
[381865900,1756377931010,-227.0,0.00014235,2]
[381865901,1756377934454,-214.0,0.00014235,2]
[381865902,1756377935363,-14.89157707,0.00014235,2]
[381865903,1756377935387,-557.94758163,0.00014235,2]
[381865904,1756377952909,-263.40538698,0.00014683,2]
[381865905,1756377970028,-250.0,0.00014683,2]
[381865906,1756377988621,-33.96570471,0.00014683,2]
[381865907,1756377988649,-16.06859058,0.00014943,2]
[381865908,1756377988683,-233.93140942,0.00014943,2]
[381865909,1756378006169,-332.18,0.00014942,2]
[381865910,1756378008121,-160.62287873,0.00014942,2]
[381865911,1756378024282,-7.19712127,0.00014942,2]
[381865912,1756378024362,-385.60575746,0.00014942,2]
[381865913,1756378031611,-108.68594856,0.00014942,2]
[381865914,1756378031636,-149.23183642,0.00014942,2]
[381865915,1756378034424,-271.96202572,0.00014942,2]
[381865924,1756378044975,-78.80613786,0.00014942,2]
[381865925,1756378045022,-243.0411991,0.00014942,2]
[381865926,1756378061783,-232.39698812,0.00014942,2]
[381865927,1756378062963,-24.56181278,0.00014942,2]
[381865928,1756378062998,-150.22289962,0.00014942,2]
[381865930,1756378080076,-50.22289962,0.00014942,2]
[381865931,1756378080099,-299.55420076,0.00014942,2]
[381865933,1756378097563,-400.0,0.0001486,2]
[381865934,1756378117105,-410.97,0.00014859,2]
[381865951,1756378134818,-89.03,0.00014859,2]
[381865952,1756378134847,-189.43444973,0.00014859,2]
[381865953,1756378134895,-186.67110054,0.0001486,2]
[381865954,1756378152334,-553.1,0.0001486,2]
[381865955,1756378169480,-15.77110054,0.0001486,2]
[381865956,1756378169519,-368.45779892,0.0001486,2]
[381865957,1756378186583,-100.0,0.00014901,2]
[381865958,1756378186605,-200.0,0.00014901,2]
[381865961,1756378204953,-232.715978,0.00014943,2]
[381865962,1756378222952,-177.80663611,0.00014943,2]
[381865967,1756378231495,-809.59667104,0.00014943,2]
[381865968,1756378231576,-1279.88071485,0.00014943,2]
[381865969,1756378231586,-1200.0,0.00015203,2]
[381865970,1756378231595,-902.50541591,0.00015209,2]
[381865971,1756378231605,-1000.0,0.0001521,2]
[381865972,1756378231614,-244.22038366,0.000153,2]
[381865973,1756378231624,-416.68051754,0.000153,2]
[381865974,1756378231637,-250.0,0.00016151,2]
[381865975,1756378231646,-251.0,0.00016151,2]
[381865976,1756378231656,-2500.0,0.00016151,2]
[381865977,1756378231665,-1000.0,0.0001621,2]
[381865978,1756378231677,-300.0,0.00016346,2]
[381865979,1756378231686,-250.0,0.00016346,2]
[381865980,1756378231696,-1000.0,0.00016436,3]
[381865981,1756378231705,-1000.0,0.00016437,3]
[381865982,1756378231715,-251.0,0.00016437,2]
[381865983,1756378231725,-2500.0,0.00016437,2]
[381865984,1756378231734,-250.0,0.00016437,2]
[381865985,1756378231744,-500.0,0.00016438,2]
[381865986,1756378231754,-480.0,0.0001672,2]
[381865987,1756378231763,-163.34,0.0001676,2]
[381865988,1756378231773,-250.0,0.00016783,2]
[381865989,1756378231783,-160.0,0.00016823,7]
[381865990,1756378231792,-666.0,0.00016966,3]
[381865991,1756378231801,-1000.0,0.00017191,2]
[381865992,1756378231811,-1000.0,0.0001721,2]
[381865993,1756378231820,-497.0,0.00017381,2]
[381865994,1756378231829,-250.0,0.00017587,2]
[381865996,1756378231839,-163.34,0.00017598,2]
[381865997,1756378231848,-200.0,0.000176,6]
[381865999,1756378231857,-500.0,0.000177,6]
[381866000,1756378231867,-880.81066434,0.00017735,2]
[381866001,1756378231877,-200.0,0.0001777,2]
[381866002,1756378231886,-550.0,0.0001777,2]
[381866004,1756378231895,-150.32680566,0.000178,2]
[381866005,1756378231904,-155.69098155,0.000178,2]
[381866006,1756378231914,-700.0,0.000178,6]
[381866007,1756378231924,-155.6909815,0.0001782,2]
[381866008,1756378231935,-6777.98201705,0.0001783,2]
[381866009,1756378231945,-155.6909815,0.0001784,2]
[381866010,1756378231956,-155.6909815,0.0001786,2]
[381866011,1756378231965,-150.0,0.00017865,2]
[381866012,1756378231974,-155.6909815,0.0001788,2]
[381866013,1756378231983,-1000.0,0.000179,2]
[381866014,1756378231992,-3679.8252,0.000179,2]
[381866015,1756378232001,-162.97116817,0.000179,2]
[381866016,1756378232010,-294.71611095,0.000179,2]
[381866017,1756378232018,-293.99684187,0.000179,2]
[381866018,1756378232031,-123.74775654,0.000179,2]
[381866019,1756378232040,-14128.05224346,0.000179,2]
[381866020,1756378232051,-3735.43415599,0.000179,2]
[381866021,1756378232063,-1547.6227422,0.000179,2]
[381866022,1756378232098,-409.44063044,0.000179,2]
[381866033,1756378237765,-292.76064465,0.00015209,2]
[381866034,1756378237775,-500.0,0.00015209,2]
[381866035,1756378237784,-527.62188813,0.00015209,2]
[381866036,1756378237793,-178.11594942,0.00015209,2]
[381866037,1756378237803,-632.715978,0.0001607,2]
[381866038,1756378237812,-3654.43810932,0.000179,2]
[381866220,1756378239778,-83038.16719762,0.000179,2]
[381866222,1756378239789,-321.45,0.000179,2]
[381866252,1756378240058,-69.25373242,0.000179,2]
[381866254,1756378240069,-4527.7052968,0.000179,2]
[381866492,1756378242570,-807.52063904,0.000179,2]
[381866494,1756378242581,-6074.60850713,0.000179,2]
[381866509,1756378242730,-168693.55275084,0.000179,2]
[381866511,1756378242739,-1000.0,0.000179,6]
[381866513,1756378242749,-965.938,0.000179,2]
[381866515,1756378242758,-2500.0,0.000179,2]
[381866517,1756378242767,-155.6909815,0.000179,2]
[381866519,1756378242775,-500.0,0.00017973,2]
[381866521,1756378242784,-500.0,0.00017973,2]
[381866523,1756378242793,-500.0,0.00017973,2]
[381866525,1756378242803,-500.0,0.00017973,2]
[381866527,1756378242811,-500.33008969,0.00017973,2]
[381866529,1756378242821,-161.61662079,0.00017973,2]
[381866531,1756378242830,-294.74950979,0.00017973,2]
[381866532,1756378242840,-500.0,0.00017973,2]
[381866534,1756378242849,-500.0,0.00017973,2]
[381866536,1756378242858,-156.233097,0.00017988,2]
[381866538,1756378242867,-8613.28398788,0.00017989,2]
[381866540,1756378242876,-400.0,0.00017999,2]
[381866542,1756378242886,-400.0,0.00017999,2]
[381866544,1756378242895,-400.0,0.00017999,2]
[381866546,1756378242904,-400.0,0.00017999,2]
[381866548,1756378242912,-400.0,0.00017999,2]
[381866550,1756378242922,-400.0,0.00017999,2]
[381866552,1756378242930,-400.0,0.00017999,2]
[381866554,1756378242940,-400.0,0.00017999,2]
[381866557,1756378242949,-444.73599818,0.00017999,2]
[381866560,1756378242958,-400.0,0.00017999,2]
[381866563,1756378242967,-400.0,0.00017999,2]
[381866566,1756378242976,-400.0,0.00017999,2]
[381866569,1756378242985,-400.0,0.00017999,2]
[381866573,1756378242995,-400.0,0.00017999,2]
[381866576,1756378243004,-400.0,0.00017999,2]
[381866578,1756378243013,-400.0,0.00017999,2]
[381866580,1756378243022,-400.0,0.00017999,2]
[381866582,1756378243031,-400.0,0.00017999,2]
[381866584,1756378243041,-388.06499729,0.00017999,2]
[381866586,1756378243050,-400.0,0.00017999,2]
[381866588,1756378243059,-400.0,0.00017999,2]
[381866590,1756378243068,-150.0,0.00017999,2]
[381866592,1756378243077,-400.0,0.00017999,2]
[381866594,1756378243087,-400.0,0.00017999,2]
[381866596,1756378243095,-400.0,0.00017999,2]
[381866598,1756378243105,-400.0,0.00017999,2]
[381866600,1756378243114,-400.0,0.00017999,2]
[381866602,1756378243123,-400.0,0.00017999,2]
[381866604,1756378243133,-426.58,0.00017999,2]
[381866606,1756378243143,-400.0,0.00017999,2]
[381866608,1756378243151,-400.0,0.00017999,2]
[381866610,1756378243161,-400.0,0.00017999,2]
[381866612,1756378243169,-400.0,0.00017999,2]
[381866614,1756378243178,-400.0,0.00017999,2]
[381866615,1756378243187,-400.0,0.00017999,2]
[381866617,1756378243196,-400.0,0.00017999,2]
[381866619,1756378243206,-400.0,0.00017999,2]
[381866621,1756378243216,-400.0,0.00017999,2]
[381866623,1756378243225,-400.0,0.00017999,2]
[381866625,1756378243234,-400.0,0.00017999,2]
[381866627,1756378243245,-400.0,0.00017999,2]
[381866629,1756378243255,-400.0,0.00017999,2]
[381866631,1756378243264,-400.0,0.00017999,2]
[381866633,1756378243274,-400.0,0.00017999,2]
[381866635,1756378243283,-400.0,0.00017999,2]
[381866637,1756378243292,-400.0,0.00017999,2]
[381866639,1756378243301,-400.0,0.00017999,2]
[381866641,1756378243310,-400.0,0.00017999,2]
[381866643,1756378243319,-400.0,0.00017999,2]
[381866645,1756378243328,-400.0,0.00017999,2]
[381866647,1756378243337,-400.0,0.00017999,2]
[381866649,1756378243346,-336.83,0.00017999,2]
[381866651,1756378243355,-400.0,0.00017999,2]
[381866653,1756378243364,-400.0,0.00017999,2]
[381866655,1756378243373,-400.0,0.00017999,2]
[381866657,1756378243382,-545.84,0.00017999,2]
[381866659,1756378243391,-591.38,0.00017999,2]
[381866661,1756378243400,-400.0,0.00017999,2]
[381866663,1756378243410,-400.0,0.00017999,2]
[381866665,1756378243420,-400.0,0.00017999,2]
[381866666,1756378243429,-400.0,0.00017999,2]
[381866668,1756378243438,-400.0,0.00017999,2]
[381866670,1756378243448,-361.43319044,0.00017999,2]
[381866672,1756378243458,-446.11,0.00017999,2]
[381866674,1756378243467,-400.0,0.00017999,2]
[381866676,1756378243477,-400.0,0.00017999,2]
[381866678,1756378243486,-400.0,0.00017999,2]
[381866680,1756378243496,-400.0,0.00017999,2]
[381866683,1756378243507,-400.0,0.00017999,2]
[381866685,1756378243516,-400.0,0.00017999,2]
[381866687,1756378243525,-400.0,0.00017999,2]
[381866689,1756378243537,-325.26,0.00017999,2]
[381866692,1756378243547,-400.0,0.00017999,2]
[381866693,1756378243556,-400.0,0.00017999,2]
[381866695,1756378243565,-400.0,0.00017999,2]
[381866697,1756378243574,-400.0,0.00017999,2]
[381866699,1756378243583,-400.0,0.00017999,2]
[381866701,1756378243592,-400.0,0.00017999,2]
[381866703,1756378243601,-302.8874995,0.00017999,2]
[381866705,1756378243610,-400.0,0.00017999,2]
[381866707,1756378243619,-522.07,0.00017999,2]
[381866709,1756378243629,-400.0,0.00017999,2]
[381866711,1756378243643,-400.0,0.00017999,2]
[381866713,1756378243652,-400.0,0.00017999,2]
[381866715,1756378243660,-400.0,0.00017999,2]
[381866717,1756378243670,-709.97468909,0.00018,2]
[381866719,1756378243681,-9837.05852451,0.00018,2]
[381866882,1756378245482,-537.78557504,0.00017999,2]
[381866884,1756378245491,-451.20940996,0.00018,2]
[381866912,1756378245795,-1681.0260938,0.00018,2]
[381866914,1756378245807,-1891.19748474,0.00018,2]
[381866919,1756378245847,-3263.11479994,0.00018,2]
[381867742,1756378263483,-530.52972468,0.00014767,2]
[381867743,1756378271054,-153.24077024,0.00014767,2]
[381867744,1756378279193,-150.0,0.00014767,2]
[381867745,1756378288412,-300.0,0.00014767,2]
[381867746,1756378293539,-195.05335235,0.00014767,2]
[381867747,1756378295779,-195.17615273,0.00014767,2]
[381867748,1756378316542,-150.0,0.00014942,2]
[381867751,1756378444848,-150.0,0.00015032,2]
[381867752,1756378444869,-50.17654743,0.00015032,2]
[381867757,1756378446986,-168.0,0.00015032,2]
[381867760,1756378450227,-31.82345257,0.00015032,2]
[381867761,1756378450251,-206.06150143,0.00015076,2]
[381867769,1756378601606,-159.75476729,0.00013699,2]
[381867771,1756378605980,-111.55523271,0.00013699,2]
[381867772,1756378624677,-732.41376729,0.00014552,2]
[381867773,1756378626442,-457.0774537,0.00014552,2]
[381867774,1756378641747,-200.0,0.00014552,2]
[381867778,1756378798770,-329.56753319,0.00013699,2]
[381867779,1756378801045,-170.43246681,0.00013699,2]
[381867780,1756378823170,-841.92,0.00014552,2]
[381867782,1756378827191,168.51,8.374e-05,2]
[381867783,1756378827395,168.51,8.797e-05,2]
[381867784,1756378827596,168.51,9.221e-05,2]
[381867785,1756378828003,168.51,9.644e-05,2]
[381867786,1756378828220,168.51,0.00010067,2]
[381867787,1756378828447,168.51,0.00010491,2]
[381867788,1756378828645,168.51,0.00010914,2]
[381867789,1756378828859,168.51,0.00011338,2]
[381867790,1756378829080,168.51,0.00011761,2]
[381867791,1756378829295,168.51,0.00012185,2]
[381867792,1756378829493,168.51,0.00012608,2]
[381867793,1756378829735,168.51,0.00013031,2]
[381867794,1756378829979,168.51,0.00013455,2]
[381867796,1756378841050,-168.51,0.00013878,2]
[381867797,1756378841088,-63.89797029,0.00014302,2]
[381867814,1756378860622,-104.61202971,0.00014302,2]
[381867815,1756378860658,-46.77594058,0.00014551,2]
[381867823,1756378878396,-63.84785593,0.00014551,2]
[381867824,1756378878431,-372.30428814,0.00014551,2]
[381867825,1756378895948,-500.0,0.00014552,2]
[381867826,1756378908041,-182.08,0.00014552,2]
[381867827,1756378908065,-150.0,0.00014683,2]
[381867828,1756378908088,-109.40855108,0.00014725,2]
[381867829,1756378909768,-59.10144892,0.00014725,2]
[381867830,1756378909791,-127.53297244,0.00014813,2]
[381867831,1756378912320,-228.61935761,0.00014813,2]
[381867832,1756378914001,-143.84766995,0.00014813,2]
[381867833,1756378914033,-7.37220885,0.00014813,2]
[381867834,1756378914071,-197.5602424,0.00014813,2]
[381867835,1756378915661,-219.33532169,0.00014813,2]
[381867836,1756378915684,-80.66467831,0.00014814,2]
[381867837,1756378918412,-169.33532169,0.00014814,2]
[381867838,1756378918673,-55.02045331,0.00015,2]
[381867839,1756378922191,-194.97954669,0.00015,2]
[381867840,1756378922218,-44.93849857,0.00015076,2]
[381867841,1756378922241,-168.51,0.00015148,2]
[381867842,1756378996994,1381.098,0.000291,120]
[381867985,1756379431750,-168.51,0.00015572,2]
[381867986,1756379431760,-250.0,0.00015588,2]
[381867987,1756379431769,-168.51,0.00015995,2]
[381867988,1756379431780,-214.52,0.00016005,3]
[381867989,1756379431789,-503.53472518,0.00016219,2]
[381867990,1756379431799,-73.44788122,0.0001622,2]
[381867991,1756379431810,-176.55211878,0.0001622,2]
[381867992,1756379431820,-210.45,0.0001623,2]
[381867993,1756379431830,-200.0,0.00016411,2]
[381867994,1756379431838,-14.54648046,0.00016419,2]
[381867995,1756379431853,-153.96351954,0.00016419,2]
[381867996,1756379431862,-248.5,0.00016454,2]
[381867997,1756379431872,-160.0,0.00016483,7]
[381867998,1756379431881,-1000.0,0.00016489,2]
[381867999,1756379431890,-156.12,0.00016663,2]
[381868000,1756379431900,-500.0,0.00016712,2]